bitfinex/quotes_BTCUSD_20220202
["timestamp","ask_amount","ask_price","bid_price","bid_amount"]
[1643832560342,0.353186,37614.0,37613.0,0.05064393]
[1643832560582,0.353186,37614.0,37613.0,0.04017721]
[1643832560795,0.353186,37614.0,37613.0,0.03953328]
[1643832560980,0.5920636,37614.0,37613.0,0.03953328]
[1643832561183,1.67747824,37614.0,37613.0,0.03953328]
[1643832561384,0.05,37613.0,37612.0,0.00064393]
[1643832561584,2.103186,37613.0,37612.0,0.00064393]
[1643832561880,2.103186,37613.0,37611.0,0.01046672]
[1643832561882,2.61623539,37613.0,37611.0,0.01046672]
[1643832562080,1.503186,37612.0,37611.0,0.01111066]
[1643832562282,1.78354,37612.0,37611.0,0.00064394]
[1643832563082,1.78354,37612.0,37609.0,0.03953328]
[1643832563380,0.89120593,37611.0,37610.0,0.00064316]
[1643832564085,1.49120593,37611.0,37610.0,0.00064316]
[1643832564328,1.49120593,37611.0,37609.0,0.03953328]
[1643832564329,1.55770993,37611.0,37609.0,0.03953328]
[1643832564529,1.55698979,37610.0,37609.0,0.04017645]
[1643832564727,1.83734379,37610.0,37609.0,0.04017645]
[1643832565131,0.83734379,37610.0,37609.0,0.04017645]
[1643832565534,0.066504,37609.0,37607.0,0.01046672]
[1643832565732,0.82381494,37608.0,37607.0,0.01046672]
[1643832566132,0.92381494,37608.0,37607.0,0.01046672]
[1643832566331,0.92381494,37608.0,37605.0,0.03953328]
[1643832566533,0.25170589,37606.0,37605.0,0.03953328]
[1643832566736,0.60489189,37606.0,37605.0,0.03953328]
[1643832566935,0.60489189,37606.0,37605.0,0.04017696]
[1643832567133,0.70489189,37606.0,37605.0,0.04017696]
[1643832567333,0.70489189,37606.0,37605.0,0.00064368]
[1643832567533,0.453186,37606.0,37605.0,0.00064368]
[1643832567989,0.05,37605.0,37603.0,0.01046672]
[1643832568191,0.05,37605.0,37604.0,0.00064368]
[1643832568392,0.403186,37605.0,37604.0,0.00064368]
[1643832569192,0.403186,37605.0,37602.0,0.03953328]
[1643832569395,0.353186,37604.0,37603.0,0.00064369]
[1643832569992,0.37392826,37607.0,37603.0,0.00064369]
[1643832570196,0.353186,37606.0,37603.0,0.00064369]
[1643832570392,0.353186,37606.0,37602.0,0.03953328]
[1643832570593,0.353186,37606.0,37603.0,0.00064368]
[1643832570992,0.05,37605.0,37603.0,0.00064368]
[1643832571193,0.353186,37604.0,37603.0,0.00064368]
[1643832571596,0.59824756,37604.0,37602.0,0.03953328]
[1643832571826,0.53160278,37603.0,37602.0,0.03953328]
[1643832572028,0.353186,37603.0,37602.0,0.03953328]
[1643832572229,0.353186,37603.0,37600.0,0.01046672]
[1643832572825,0.24992885,37602.0,37600.0,0.01046672]
[1643832573027,0.43132859,37602.0,37600.0,0.01046672]
[1643832573230,0.93451459,37602.0,37600.0,0.01046672]
[1643832573425,0.93451459,37602.0,37597.0,0.02113695]
[1643832573426,0.93451459,37602.0,37599.0,0.03953328]
[1643832574025,0.93451459,37602.0,37600.0,0.00064341]
[1643832574427,0.75311485,37602.0,37600.0,0.00064341]
[1643832574730,0.63172145,37602.0,37600.0,0.00064341]
[1643832574927,0.353186,37602.0,37600.0,0.00064341]
[1643832575227,0.353186,37603.0,37600.0,0.00064341]
[1643832575881,0.00014068,37602.0,37600.0,0.06713841]
[1643832576080,0.00014068,37602.0,37601.0,1.02834286]
[1643832576681,0.00014068,37602.0,37601.0,0.07834286]
[1643832577081,0.00014068,37602.0,37601.0,0.42834286]
[1643832577481,0.30743026,37607.0,37602.0,0.916491]
[1643832577482,0.30737094,37607.0,37602.0,0.916491]
[1643832578082,0.30737094,37607.0,37602.0,0.066491]
[1643832578482,0.04994068,37607.0,37602.0,0.066491]
[1643832578684,0.04994068,37607.0,37602.0,0.13297965]
[1643832578885,0.04994068,37607.0,37603.0,0.00064339]
[1643832579086,0.04994068,37607.0,37605.0,0.27178165]
[1643832579336,0.22504574,37613.0,37605.0,0.06648]
[1643832579635,0.20782905,37612.0,37611.0,0.10079809]
[1643832579839,0.56101505,37612.0,37604.0,0.05946672]
[1643832580035,0.38722933,37612.0,37605.0,0.06647898]
[1643832580237,0.353186,37611.0,37610.0,0.00064335]
[1643832580434,0.403186,37611.0,37610.0,0.00064335]
[1643832581236,0.353186,37611.0,37608.0,0.066482]
[1643832581436,0.24489237,37618.0,37609.0,0.04964336]
[1643832581636,0.353186,37617.0,37609.0,0.04964336]
[1643832582035,0.227352,37614.0,37609.0,0.35617543]
[1643832582235,0.353186,37613.0,37609.0,0.35617543]
[1643832582438,0.353186,37613.0,37611.0,0.066475]
[1643832583098,0.353186,37613.0,37611.0,0.13294821]
[1643832584493,0.05,37614.0,37611.0,0.13294821]
[1643832585494,0.05,37614.0,37612.0,0.132936]
[1643832585696,0.05,37614.0,37613.0,1.28121894]
[1643832585893,0.05,37614.0,37613.0,1.78121894]
[1643832586394,0.04458268,37614.0,37613.0,1.28121894]
[1643832586594,0.04458268,37614.0,37613.0,0.23121894]
[1643832586829,0.04458268,37614.0,37613.0,0.449]
[1643832587430,0.00042509,37619.0,37614.0,1.1]
[1643832587638,0.00042509,37619.0,37615.0,0.30670008]
[1643832587834,0.00042509,37619.0,37615.0,0.115466]
[1643832588031,0.00042509,37619.0,37615.0,0.30670008]
[1643832588233,0.00042509,37619.0,37615.0,0.115466]
[1643832588434,0.05,37620.0,37615.0,0.115466]
[1643832588633,0.29930998,37617.0,37615.0,0.115466]
[1643832588835,0.353186,37616.0,37608.0,0.049]
[1643832589033,0.29930998,37617.0,37614.0,0.01858336]
[1643832589233,0.29930998,37617.0,37614.0,0.0101444]
[1643832589234,0.43989555,37616.0,37614.0,0.0101444]
[1643832589434,0.6528962,37615.0,37614.0,0.0101444]
[1643832589635,0.81133516,37615.0,37614.0,0.0101444]
[1643832590586,0.71133516,37615.0,37614.0,0.0101444]
[1643832590786,0.81133516,37615.0,37614.0,0.0101444]
[1643832594527,0.81133516,37615.0,37613.0,0.05064363]
[1643832594528,0.8028962,37615.0,37613.0,0.05064363]
[1643832594728,1.253186,37614.0,37613.0,0.05064363]
[1643832595331,1.51829719,37614.0,37613.0,0.05064363]
[1643832595625,0.71829719,37614.0,37613.0,0.05]
[1643832599183,0.453186,37614.0,37613.0,0.05]
[1643832599381,0.353186,37614.0,37613.0,0.05]
[1643832599582,0.18060089,37615.0,37613.0,0.05]
[1643832599781,0.00019577,37615.0,37613.0,0.05]
[1643832600183,0.00019577,37615.0,37613.0,0.116472]
[1643832600583,0.00019577,37615.0,37613.0,0.42709408]
[1643832601182,0.0001955,37614.0,37613.0,0.42709408]
[1643832601835,0.0001955,37614.0,37613.0,1.70657068]
[1643832602135,0.0001955,37614.0,37613.0,2.05975668]
[1643832602335,0.0001955,37614.0,37613.0,0.05]
[1643832602535,0.56291054,37614.0,37613.0,0.05]
[1643832602738,1.41291054,37614.0,37613.0,0.05]
[1643832602937,1.75062235,37614.0,37613.0,0.05]
[1643832603337,2.54913099,37614.0,37613.0,0.05]
[1643832603537,2.60545778,37614.0,37613.0,0.05]
[1643832603738,1.85545778,37614.0,37613.0,0.05]
[1643832603938,1.79940837,37614.0,37613.0,0.05]
[1643832604537,1.46141918,37614.0,37613.0,0.05]
[1643832605603,1.3,37613.0,37612.0,0.00063159]
[1643832605795,1.753186,37613.0,37612.0,0.00063159]
[1643832605995,2.1472246,37613.0,37612.0,0.00063159]
[1643832606395,2.21403438,37613.0,37608.0,0.01835135]
[1643832606595,2.21403438,37613.0,37607.0,0.01803299]
[1643832606596,0.33801932,37610.0,37607.0,0.01803299]
[1643832606795,0.55411664,37609.0,37607.0,0.01803299]
[1643832606997,0.05,37610.0,37607.0,0.01803299]
[1643832606998,1.00775853,37608.0,37607.0,0.01803299]
[1643832607597,0.8296607,37608.0,37607.0,0.01803299]
[1643832608699,0.8296607,37608.0,37602.0,0.15132245]
[1643832608900,0.4764747,37608.0,37606.0,0.0005685]
[1643832609330,0.5429647,37608.0,37606.0,0.0005685]
[1643832609531,0.353186,37607.0,37606.0,0.0005685]
[1643832609935,0.63005354,37607.0,37605.0,0.05]
[1643832610135,1.3791736,37606.0,37605.0,0.05]
[1643832610333,1.3791736,37606.0,37605.0,0.01028087]
[1643832610639,0.6791736,37606.0,37605.0,0.01028087]
[1643832611034,0.97033376,37606.0,37605.0,0.01028087]
[1643832611935,0.97033376,37606.0,37605.0,0.0005685]
[1643832612133,1.15,37605.0,37604.0,0.0005685]
[1643832612334,1.94124153,37605.0,37604.0,0.0005685]
[1643832612734,2.00775453,37605.0,37601.0,0.0012]
[1643832612980,0.07511783,37603.0,37602.0,0.04028763]
[1643832613185,0.68293418,37603.0,37602.0,0.04028763]
[1643832613581,0.78293418,37603.0,37601.0,0.0012]
[1643832613783,1.60037605,37602.0,37601.0,0.0012]
[1643832614181,1.84232951,37602.0,37601.0,0.0012]
[1643832614782,0.353186,37602.0,37601.0,0.0012]
[1643832614985,0.116513,37604.0,37601.0,0.0012]
[1643832615183,0.05,37604.0,37601.0,0.0012]
[1643832615583,0.353186,37603.0,37601.0,0.0012]
[1643832615788,0.99422109,37602.0,37601.0,0.0012]
[1643832615986,1.43253434,37602.0,37601.0,0.0012]
[1643832616185,1.48253434,37602.0,37601.0,0.0012]
[1643832616488,1.88263651,37602.0,37601.0,0.0012]
[1643832616739,2.4776782,37602.0,37601.0,0.0012]
[1643832617142,2.5266782,37602.0,37601.0,0.0012]
[1643832617543,2.86473373,37602.0,37601.0,0.0012]
[1643832618346,2.5266782,37602.0,37601.0,0.0012]
[1643832619142,1.7266782,37602.0,37601.0,0.0012]
[1643832619343,1.6776782,37602.0,37601.0,0.0012]
[1643832620144,1.7266782,37602.0,37601.0,0.0012]
[1643832620585,1.6776782,37602.0,37601.0,0.0012]
[1643832620790,1.35982713,37602.0,37601.0,0.0012]
[1643832621287,1.35996825,37602.0,37601.0,0.0012]
[1643832622088,1.67389343,37602.0,37601.0,0.0012]
[1643832622992,1.72389343,37602.0,37601.0,0.0012]
[1643832623290,1.67389343,37602.0,37601.0,0.0012]
[1643832624244,1.67489343,37602.0,37601.0,0.0012]
[1643832624439,1.67489343,37602.0,37601.0,0.000689]
[1643832624839,1.72489343,37602.0,37601.0,0.000689]
[1643832625339,1.67489343,37602.0,37601.0,0.000689]
[1643832626042,1.36096825,37602.0,37601.0,0.000689]
[1643832626242,0.99865038,37602.0,37601.0,0.000689]
[1643832626640,0.80442929,37602.0,37601.0,0.000689]
[1643832627841,1.09455433,37602.0,37601.0,0.000689]
[1643832628084,0.86301305,37602.0,37601.0,0.000689]
[1643832628487,0.65442929,37602.0,37601.0,0.000689]
[1643832628981,0.35432712,37602.0,37601.0,0.000689]
[1643832629183,0.00114112,37602.0,37601.0,0.000689]
[1643832629383,0.00114112,37602.0,37601.0,1.050689]
[1643832629584,0.00114112,37602.0,37601.0,1.139359]
[1643832630281,0.00114112,37602.0,37601.0,0.089359]
[1643832630687,0.00114112,37602.0,37601.0,0.000689]
[1643832631288,0.001,37602.0,37601.0,0.900689]
[1643832631935,0.001,37602.0,37601.0,0.730689]
[1643832632538,0.001,37602.0,37601.0,0.90720796]
[1643832632837,0.001,37602.0,37601.0,0.95620796]
[1643832633037,0.001,37602.0,37601.0,1.30939396]
[1643832633435,0.001,37602.0,37601.0,1.95939396]
[1643832634036,0.001,37602.0,37601.0,2.10939396]
[1643832634236,0.05,37604.0,37602.0,1.61647311]
[1643832634437,0.05,37604.0,37603.0,2.16344197]
[1643832634638,0.00042543,37613.0,37604.0,1.55]
[1643832634936,0.00042543,37613.0,37605.0,0.22980901]
[1643832635588,0.05,37613.0,37607.0,0.44459876]
[1643832635788,0.00042551,37613.0,37607.0,0.49359876]
[1643832635988,0.00042551,37613.0,37607.0,0.115469]
[1643832636589,0.00042551,37613.0,37608.0,0.06647338]
[1643832636790,0.2088724,37614.0,37609.0,0.32609176]
[1643832636989,0.0002,37615.0,37609.0,0.32609176]
[1643832636991,0.0006431,37613.0,37609.0,0.32609176]
[1643832637191,0.0006431,37613.0,37609.0,0.066472]
[1643832637391,0.0006431,37613.0,37607.0,0.01832881]
[1643832637789,0.066483,37612.0,37607.0,0.01832881]
[1643832637991,0.066483,37612.0,37609.0,0.00971237]
[1643832638390,0.59339524,37611.0,37609.0,0.00971237]
[1643832638690,0.59339524,37611.0,37608.0,0.04028763]
[1643832638691,0.24020924,37611.0,37608.0,0.04028763]
[1643832638992,0.353186,37610.0,37608.0,0.04028763]
[1643832639238,0.066485,37610.0,37608.0,0.04028763]
[1643832639439,0.353186,37609.0,37608.0,0.04028763]
[1643832639639,0.24020924,37611.0,37608.0,0.04028763]
[1643832639838,0.353186,37610.0,37608.0,0.04028763]
[1643832640238,0.24020924,37611.0,37608.0,0.04028763]
[1643832640439,0.353186,37610.0,37608.0,0.04028763]
[1643832640739,0.24020924,37611.0,37608.0,0.04028763]
[1643832640939,0.353186,37610.0,37608.0,0.04028763]
[1643832641740,0.24020924,37611.0,37608.0,0.04028763]
[1643832641940,0.066482,37612.0,37608.0,0.04028763]
[1643832642342,0.05064309,37613.0,37608.0,0.04028763]
[1643832642839,0.05,37613.0,37609.0,0.066477]
[1643832643084,0.0506431,37613.0,37610.0,0.06647278]
[1643832643885,0.0506431,37613.0,37608.0,0.04028763]
[1643832643886,0.353186,37612.0,37608.0,0.04028763]
[1643832644189,0.05064311,37613.0,37608.0,0.04028763]
[1643832644387,0.05064311,37613.0,37608.0,0.17324395]
[1643832644589,0.00064311,37613.0,37609.0,0.23210829]
[1643832644790,0.00064311,37613.0,37610.0,0.353186]
[1643832644990,0.00064311,37613.0,37611.0,0.1898274]
[1643832645189,0.05,37614.0,37611.0,0.1898274]
[1643832645389,0.00064311,37613.0,37611.0,0.1898274]
[1643832645691,0.00064311,37613.0,37610.0,0.049]
[1643832645892,0.00064311,37613.0,37611.0,0.066465]
[1643832646290,0.00064311,37613.0,37612.0,1.37669786]
[1643832646488,0.05,37614.0,37612.0,1.37669786]
[1643832646739,0.05064311,37614.0,37612.0,1.37669786]
[1643832647144,0.05064311,37614.0,37612.0,1.2]
[1643832647339,0.05064311,37614.0,37612.0,1.26646744]
[1643832647541,0.05064311,37614.0,37612.0,1.39939844]
[1643832647542,0.05,37614.0,37612.0,1.39939844]
[1643832647741,0.05,37614.0,37613.0,0.0861667]
[1643832648341,0.00084311,37615.0,37612.0,0.19939844]
[1643832648743,0.0002,37615.0,37612.0,0.19939844]
[1643832649143,0.0008431,37615.0,37612.0,0.19939844]
[1643832649346,0.0008431,37615.0,37612.0,0.28546715]
[1643832649542,0.0008431,37615.0,37612.0,0.19939844]
[1643832649942,0.0002,37615.0,37612.0,0.19939844]
[1643832650142,0.0002,37615.0,37612.0,0.132931]
[1643832650341,0.0008431,37615.0,37612.0,0.132931]
[1643832650787,0.00036874,37615.0,37612.0,0.132931]
[1643832651185,0.05,37616.0,37612.0,0.22616481]
[1643832651386,0.05,37616.0,37612.0,0.09323381]
[1643832651684,0.05,37616.0,37612.0,0.10294618]
[1643832652488,0.05,37616.0,37612.0,0.13352144]
[1643832652690,0.05,37616.0,37613.0,0.506386]
[1643832652889,0.05,37616.0,37614.0,0.39280843]
[1643832653088,0.05,37616.0,37613.0,0.1532]
[1643832653089,0.05,37616.0,37615.0,1.48917915]
[1643832653288,0.05,37616.0,37615.0,0.58917915]
[1643832653489,0.05,37616.0,37615.0,0.0532]
[1643832653692,0.21057033,37617.0,37615.0,0.0532]
[1643832653891,0.00064309,37617.0,37615.0,0.0532]
[1643832654091,0.00064309,37617.0,37616.0,0.24269028]
[1643832654330,0.00064309,37617.0,37616.0,0.29589028]
[1643832654734,0.05,37619.0,37616.0,0.29589028]
[1643832654932,0.21818288,37618.0,37616.0,0.29589028]
[1643832655132,0.21882597,37618.0,37616.0,0.29589028]
[1643832655334,0.21882597,37618.0,37616.0,0.0532]
[1643832655533,0.26882597,37618.0,37612.0,0.0612322]
[1643832655733,0.41967,37617.0,37612.0,0.0612322]
[1643832655933,0.353186,37616.0,37612.0,0.0612322]
[1643832656133,0.403186,37616.0,37612.0,0.0612322]
[1643832656334,0.68121387,37615.0,37612.0,0.0612322]
[1643832656534,0.353186,37614.0,37612.0,0.0612322]
[1643832656733,0.05,37616.0,37612.0,0.0612322]
[1643832656934,0.05,37616.0,37612.0,0.04028763]
[1643832657137,0.00064309,37617.0,37612.0,0.04028763]
[1643832657435,0.1,37619.0,37612.0,0.04028763]
[1643832657632,0.22353458,37616.0,37612.0,0.04028763]
[1643832658083,0.00042623,37617.0,37612.0,0.04028763]
[1643832658283,0.04542623,37619.0,37613.0,0.5]
[1643832658481,0.04542623,37619.0,37613.0,0.06646797]
[1643832659182,0.3031911,37619.0,37613.0,0.06646797]
[1643832659786,0.04542623,37619.0,37613.0,0.24034821]
[1643832659981,0.04542623,37619.0,37614.0,0.066467]
[1643832660182,0.04542623,37619.0,37615.0,0.17454436]
[1643832660384,0.04542623,37619.0,37616.0,0.06646228]
[1643832660784,0.04512303,37619.0,37616.0,0.06646228]
[1643832661487,0.04512303,37619.0,37615.0,0.066466]
[1643832661739,0.04512303,37619.0,37613.0,0.01908542]
[1643832661940,0.04512303,37619.0,37616.0,0.00971237]
[1643832662344,0.04576758,37619.0,37616.0,0.00971237]
[1643832662544,0.353186,37618.0,37616.0,0.00971237]
[1643832662742,0.403186,37618.0,37616.0,0.03535481]
[1643832662946,0.353186,37617.0,37616.0,0.03535481]
[1643832663546,0.353186,37617.0,37605.0,0.71878203]
[1643832663547,0.066484,37615.0,37614.0,0.01464519]
[1643832663747,1.103186,37615.0,37614.0,0.01464519]
[1643832664148,1.18461461,37615.0,37614.0,0.01464519]
[1643832664548,1.28461461,37615.0,37612.0,0.03535481]
[1643832664750,0.199465,37613.0,37612.0,0.03535481]
[1643832664952,0.353186,37613.0,37612.0,0.03535481]
[1643832665348,0.09576756,37619.0,37612.0,0.03535481]
[1643832665587,0.00487697,37615.0,37610.0,0.01464519]
[1643832666086,0.00487697,37615.0,37610.0,0.18827844]
[1643832666287,0.00487697,37615.0,37612.0,0.0917249]
[1643832666687,0.04512303,37616.0,37612.0,0.0917249]
[1643832667287,0.04512303,37616.0,37612.0,0.15819397]
[1643832667786,0.04012303,37616.0,37612.0,0.15819397]
[1643832668388,0.04012303,37616.0,37613.0,0.06647]
[1643832669640,0.353186,37615.0,37613.0,0.06647]
[1643832670244,0.353186,37615.0,37611.0,0.10182681]
[1643832670441,0.04012303,37616.0,37611.0,0.10182681]
[1643832671040,0.04012303,37616.0,37611.0,0.03535481]
[1643832671042,0.35338291,37615.0,37611.0,0.03535481]
[1643832671241,0.30896429,37613.0,37611.0,0.03535481]
[1643832671442,0.353186,37612.0,37611.0,0.03535481]
[1643832671844,1.16924316,37612.0,37611.0,0.03535481]
[1643832672341,1.21924316,37612.0,37611.0,0.03535481]
[1643832672644,0.66924316,37612.0,37609.0,0.01528986]
[1643832672841,0.353186,37611.0,37609.0,0.01464519]
[1643832673089,0.83593932,37610.0,37609.0,0.01528985]
[1643832673284,1.23912532,37610.0,37609.0,0.01528985]
[1643832673484,0.83912532,37610.0,37609.0,0.01528985]
[1643832674087,0.83912532,37610.0,37609.0,0.01464519]
[1643832674286,0.64154461,37610.0,37609.0,0.01464519]
[1643832675086,0.64154461,37610.0,37608.0,0.00064467]
[1643832675289,0.419675,37609.0,37604.0,0.02020237]
[1643832675486,0.066489,37609.0,37608.0,0.00064467]
[1643832675686,0.469675,37609.0,37608.0,0.00064467]
[1643832675991,0.05,37609.0,37608.0,0.60064467]
[1643832676389,0.05,37609.0,37607.0,0.13295464]
[1643832676588,0.00019558,37610.0,37607.0,0.13295464]
[1643832676840,0.00019558,37610.0,37607.0,0.00064468]
[1643832677041,0.29641454,37610.0,37607.0,0.00064468]
[1643832677239,0.34641454,37610.0,37607.0,0.00064468]
[1643832677638,0.34641454,37610.0,37605.0,0.05]
[1643832677840,0.29641454,37610.0,37607.0,0.0006028]
[1643832678038,0.2829112,37609.0,37607.0,0.0006028]
[1643832678938,0.00019558,37610.0,37605.0,0.05]
[1643832679141,0.00019558,37610.0,37606.0,0.0006028]
[1643832680143,0.00019558,37610.0,37605.0,0.05]
[1643832680346,0.00019558,37610.0,37606.0,0.06708234]
[1643832680594,0.00019558,37610.0,37606.0,0.13356334]
[1643832680993,0.00019505,37608.0,37606.0,0.13356334]
[1643832681194,0.00019505,37608.0,37606.0,0.13296054]
[1643832682195,0.00019505,37608.0,37607.0,1.803186]
[1643832682795,0.00019505,37608.0,37607.0,0.353186]
[1643832683001,0.00019505,37608.0,37606.0,0.13356616]
[1643832683396,0.00019505,37608.0,37606.0,0.12856616]
[1643832683595,0.00019505,37608.0,37606.0,0.066481]
[1643832683797,0.26251096,37607.0,37606.0,0.066481]
[1643832683996,0.06667805,37608.0,37606.0,0.066481]
[1643832685946,0.06667805,37608.0,37606.0,0.33859819]
[1643832686146,0.00019505,37608.0,37607.0,1.603186]
[1643832686346,0.00019505,37608.0,37607.0,1.652186]
[1643832687446,0.00019505,37608.0,37607.0,0.402186]
[1643832687848,0.00019505,37608.0,37607.0,0.852186]
[1643832688890,0.00019505,37608.0,37607.0,0.499]
[1643832689093,0.00019505,37608.0,37607.0,0.049]
[1643832689396,0.00019505,37608.0,37606.0,0.00060543]
[1643832689794,0.00019505,37608.0,37605.0,0.05]
[1643832689991,0.00019505,37608.0,37605.0,0.05060545]
[1643832690394,0.06668405,37608.0,37605.0,0.05060545]
[1643832690795,0.59706815,37607.0,37605.0,0.05060545]
[1643832691002,0.353186,37606.0,37605.0,0.05]
[1643832691194,0.353186,37606.0,37605.0,0.05060545]
[1643832691393,0.06668405,37608.0,37605.0,0.05060545]
[1643832692236,0.06668405,37608.0,37605.0,0.05]
[1643832692439,0.06668405,37608.0,37605.0,0.05060545]
[1643832694340,0.49939455,37605.0,37603.0,0.13297266]
[1643832694942,0.49939455,37605.0,37604.0,1.503186]
[1643832695143,0.49939455,37605.0,37604.0,1.552186]
[1643832697387,0.49939455,37605.0,37604.0,0.402186]
[1643832697588,0.49939455,37605.0,37604.0,0.049]
[1643832697987,0.49939455,37605.0,37602.0,0.05]
[1643832697988,0.49728091,37605.0,37602.0,0.05]
[1643832698390,0.49728091,37605.0,37603.0,0.00061017]
[1643832698989,0.56377891,37605.0,37603.0,0.00061017]
[1643832699445,0.353186,37604.0,37602.0,0.05]
[1643832699648,0.56377891,37605.0,37602.0,0.05]
[1643832699649,0.56377891,37605.0,37602.0,0.05061017]
[1643832700246,0.132998,37604.0,37602.0,0.05061017]
[1643832700648,0.132998,37604.0,37602.0,0.05]
[1643832700850,0.49728091,37605.0,37602.0,0.05]
[1643832701051,0.00019399,37604.0,37602.0,0.05]
[1643832702650,0.00019399,37604.0,37602.0,0.116489]
[1643832702850,0.00019399,37604.0,37603.0,1.903186]
[1643832703297,0.00019399,37604.0,37603.0,2.12462628]
[1643832703498,0.49728091,37605.0,37604.0,1.55]
[1643832703699,0.49728091,37605.0,37604.0,1.839835]
[1643832704798,0.49728091,37605.0,37604.0,0.239835]
[1643832704996,0.49728091,37605.0,37604.0,0.402186]
[1643832705597,0.49728091,37605.0,37604.0,0.902186]
[1643832709639,0.49728091,37605.0,37604.0,0.901186]
[1643832710906,0.49728091,37605.0,37604.0,0.401186]
[1643832711503,0.49728091,37605.0,37604.0,0.048]
[1643832711704,0.49728091,37605.0,37603.0,0.20001503]
[1643832711902,0.49728091,37605.0,37603.0,0.13254517]
[1643832712304,0.54728091,37605.0,37603.0,0.13254517]
[1643832712505,0.54728091,37605.0,37603.0,0.00060545]
[1643832712703,0.49728091,37605.0,37602.0,0.05]
[1643832712904,0.066496,37604.0,37602.0,0.05060545]
[1643832713305,0.066496,37604.0,37602.0,0.04960545]
[1643832713907,0.066496,37604.0,37602.0,0.049]
[1643832714241,0.066496,37604.0,37602.0,0.048]
[1643832715046,0.066496,37604.0,37602.0,0.047]
[1643832716046,0.066496,37604.0,37602.0,0.046]
[1643832716447,0.54728091,37605.0,37602.0,0.046]
[1643832716844,0.49728091,37605.0,37602.0,0.046]
[1643832717045,0.54728091,37605.0,37603.0,0.52700979]
[1643832717254,0.54728091,37605.0,37604.0,0.790834]
[1643832717547,0.54728091,37605.0,37604.0,1.01316733]
[1643832717548,0.49728091,37605.0,37604.0,1.01316733]
[1643832718408,0.49728091,37605.0,37604.0,1.46316733]
[1643832718808,0.49728091,37605.0,37604.0,1.51316733]
[1643832719010,0.43873684,37605.0,37604.0,2.01316733]
[1643832719210,0.17304913,37605.0,37604.0,2.01316733]
[1643832719409,0.00057835,37613.0,37607.0,0.06646076]
[1643832719609,0.00057835,37613.0,37611.0,0.23425262]
[1643832719809,0.39535438,37624.0,37612.0,1.97913248]
[1643832719810,0.33805553,37623.0,37612.0,1.97913248]
[1643832720009,0.001,37624.0,37619.0,0.29198959]
[1643832720211,0.001,37624.0,37620.0,0.049]
[1643832720611,0.21315357,37621.0,37620.0,0.049]
[1643832720811,0.001,37624.0,37620.0,0.049]
[1643832721014,0.067454,37624.0,37620.0,0.119451]
[1643832721216,0.00038876,37622.0,37620.0,0.119451]
[1643832721617,0.853186,37621.0,37620.0,0.004]
[1643832721851,0.903186,37621.0,37620.0,0.004]
[1643832722151,0.2463898,37620.0,37619.0,0.046]
[1643832722351,0.5995758,37620.0,37619.0,0.046]
[1643832722550,0.68146958,37620.0,37619.0,0.046]
[1643832722949,0.81440958,37620.0,37617.0,0.004]
[1643832723151,0.353186,37619.0,37617.0,0.004]
[1643832723349,0.353186,37618.0,37617.0,0.003]
[1643832723548,0.46122358,37620.0,37617.0,0.003]
[1643832723549,0.05,37619.0,37617.0,0.003]
[1643832723749,0.06647,37619.0,37615.0,0.047]
[1643832724953,0.31888653,37618.0,37615.0,0.047]
[1643832725152,0.419664,37617.0,37615.0,0.047]
[1643832725360,0.853186,37616.0,37615.0,0.047]
[1643832725596,0.853186,37616.0,37614.0,0.00061912]
[1643832725794,0.853186,37616.0,37613.0,0.003]
[1643832725795,1.77020151,37615.0,37613.0,0.003]
[1643832726002,1.15021041,37614.0,37613.0,0.003]
[1643832726196,1.40796589,37614.0,37613.0,0.003]
[1643832726394,1.90232027,37614.0,37613.0,0.003]
[1643832726593,1.82496829,37614.0,37611.0,0.047]
[1643832726796,0.8742601,37613.0,37611.0,0.047]
[1643832726997,0.753186,37612.0,37611.0,0.047]
[1643832727195,0.753186,37612.0,37611.0,0.04718837]
[1643832727497,0.419676,37612.0,37611.0,0.04718837]
[1643832728094,0.06649,37612.0,37611.0,0.04718837]
[1643832728294,0.06649,37612.0,37611.0,0.046]
[1643832728693,0.06649,37612.0,37611.0,0.045]
[1643832729247,0.06649,37612.0,37611.0,0.22664802]
[1643832729449,0.066467,37615.0,37611.0,0.22664802]
[1643832729644,0.13294,37617.0,37612.0,0.049]
[1643832729645,0.00057127,37617.0,37612.0,0.049]
[1643832729845,0.00057127,37617.0,37614.0,0.3725754]
[1643832730049,0.00057127,37617.0,37615.0,0.049]
[1643832730744,0.2463898,37620.0,37615.0,0.049]
[1643832730947,0.06703839,37618.0,37615.0,0.049]
[1643832731348,0.06703839,37618.0,37615.0,0.222796]
[1643832731546,0.06703839,37618.0,37616.0,0.13292709]
[1643832731749,0.06703839,37618.0,37617.0,0.049]
[1643832731953,0.066464,37618.0,37617.0,0.049]
[1643832733798,0.52432178,37618.0,37615.0,0.05]
[1643832734003,0.353186,37617.0,37615.0,0.05]
[1643832734195,0.486139,37617.0,37615.0,0.05]
[1643832734395,0.353186,37616.0,37615.0,0.05]
[1643832734598,0.353186,37616.0,37612.0,0.0203355]
[1643832734794,0.132953,37617.0,37612.0,0.0203355]
[1643832734995,0.05,37616.0,37609.0,0.13252058]
[1643832735197,0.066484,37613.0,37607.0,0.1782171]
[1643832735395,0.066484,37613.0,37606.0,0.38880447]
[1643832735396,0.116484,37613.0,37606.0,0.38880447]
[1643832735595,0.116484,37613.0,37607.0,0.05]
[1643832736195,0.116484,37613.0,37607.0,0.049]
[1643832736596,0.166484,37613.0,37608.0,0.06648]
[1643832737253,0.166484,37613.0,37609.0,0.17371982]
[1643832737649,0.116484,37613.0,37607.0,0.51495104]
[1643832737849,0.166484,37613.0,37610.0,0.0664716]
[1643832738451,0.166484,37613.0,37610.0,0.1329436]
[1643832739250,0.166484,37613.0,37610.0,0.13358888]
[1643832740152,0.166484,37613.0,37610.0,0.06711728]
[1643832740351,0.166484,37613.0,37610.0,0.066472]
[1643832740589,0.166484,37613.0,37610.0,0.06711728]
[1643832741189,0.166484,37613.0,37610.0,0.00064528]
[1643832741588,0.166484,37613.0,37608.0,0.06648]
[1643832741789,0.166484,37613.0,37610.0,0.00064528]
[1643832742392,0.26694051,37613.0,37610.0,0.00064528]
[1643832742790,0.116484,37613.0,37608.0,0.06648]
[1643832742990,0.116484,37613.0,37610.0,0.00064545]